bitfinex-derivatives/quotes_BTCF0:USTF0_20251228
["timestamp","ask_amount","ask_price","bid_price","bid_amount"]
[1766918039274,0.02602789,87980.0,87967.0,0.05696]
[1766918039469,0.0113751,87982.0,87967.0,0.05696]
[1766918039670,0.02602575,87981.0,87967.0,0.05696]
[1766918039884,0.02602575,87980.0,87967.0,0.05696]
[1766918040184,0.0113751,87982.0,87967.0,0.05696]
[1766918040386,0.0260253,87981.0,87967.0,0.05696]
[1766918040683,0.0260253,87980.0,87967.0,0.05696]
[1766918040887,0.0113751,87982.0,87967.0,0.05696]
[1766918041078,0.0260253,87981.0,87967.0,0.05696]
[1766918041278,0.0260253,87980.0,87967.0,0.05696]
[1766918041478,0.0113751,87982.0,87967.0,0.05696]
[1766918041687,0.02602364,87981.0,87967.0,0.05696]
[1766918041890,0.0113751,87982.0,87967.0,0.05696]
[1766918041891,0.02602364,87980.0,87967.0,0.05696]
[1766918042090,0.0113751,87982.0,87967.0,0.05696]
[1766918042387,0.02602363,87981.0,87967.0,0.05696]
[1766918042583,0.02602363,87980.0,87967.0,0.05696]
[1766918042886,0.0113751,87982.0,87967.0,0.05696]
[1766918043083,0.02602234,87981.0,87967.0,0.0683369]
[1766918043284,0.00244376,87983.0,87967.0,0.0683369]
[1766918043889,0.01381866,87983.0,87967.0,0.0683369]
[1766918044191,0.01381866,87983.0,87967.0,0.05696]
[1766918046993,0.0113752,87981.0,87967.0,0.05696]
[1766918059706,0.00244376,87983.0,87967.0,0.0683369]
[1766918060003,0.011375,87982.0,87967.0,0.0683369]
[1766918060503,0.00244376,87983.0,87967.0,0.0683369]
[1766918061300,0.011375,87982.0,87967.0,0.0683369]
[1766918063603,0.011375,87982.0,87967.0,0.0983369]
[1766918063802,0.00244376,87983.0,87969.0,0.0113767]
[1766918064309,0.0113746,87986.0,87967.0,0.05696]
[1766918064507,0.081,87993.0,87967.0,0.05696]
[1766918064508,0.0113744,87987.0,87971.0,0.0113764]
[1766918065104,0.1536,87990.0,87971.0,0.0113764]
[1766918066311,0.0113743,87988.0,87971.0,0.0113764]
[1766918067009,0.0113746,87986.0,87971.0,0.0113764]
[1766918067212,0.0113746,87986.0,87968.0,0.0113768]
[1766918067408,0.0113748,87984.0,87968.0,0.0413768]
[1766918068310,0.1536,87990.0,87968.0,0.0413768]
[1766918069111,0.0113745,87986.0,87970.0,0.0113765]
[1766918069311,0.0113745,87986.0,87970.0,0.0413765]
[1766918070412,0.0113742,87989.0,87972.0,0.0113763]
[1766918073316,0.0113744,87987.0,87972.0,0.0113763]
[1766918074817,0.0113744,87987.0,87972.0,0.0413763]
[1766918075317,0.1649741,87990.0,87972.0,0.0413763]
[1766918078820,0.0113743,87988.0,87972.0,0.0413763]
[1766918084317,0.0113743,87988.0,87974.0,0.011376]
[1766918085318,0.01154448,87991.0,87976.0,0.0113757]
[1766918085523,0.05692,87990.0,87976.0,0.0113757]
[1766918086314,0.01154448,87991.0,87976.0,0.0113757]
[1766918086514,0.05692,87990.0,87976.0,0.0113757]
[1766918087329,0.01154448,87991.0,87976.0,0.0113757]
[1766918087817,0.01154448,87991.0,87976.0,0.0413757]
[1766918088323,0.01154448,87991.0,87976.0,0.03]
[1766918089317,0.0113742,87989.0,87976.0,0.03]
[1766918090325,0.0113744,87987.0,87976.0,0.03]
[1766918091522,0.0113751,87982.0,87968.0,0.09668]
[1766918091726,0.0113753,87980.0,87968.0,0.12668]
[1766918093127,0.0113749,87983.0,87968.0,0.12668]
[1766918094120,0.05709058,87991.0,87969.0,0.0113767]
[1766918094427,0.0113747,87985.0,87969.0,0.0413767]
[1766918095529,0.0113749,87983.0,87969.0,0.03]
[1766918099235,0.0113746,87986.0,87969.0,0.03]
[1766918099925,0.0113746,87986.0,87970.0,0.0113765]
[1766918100124,0.0113746,87986.0,87970.0,0.0413765]
[1766918100325,0.0113742,87989.0,87972.0,0.0113762]
[1766918100620,0.0113742,87989.0,87972.0,0.0413762]
[1766918101733,0.0113744,87987.0,87972.0,0.0413762]
[1766918103034,0.0113741,87990.0,87972.0,0.0413762]
[1766918103923,0.0113741,87990.0,87974.0,0.011376]
[1766918104130,0.0113741,87990.0,87974.0,0.041376]
[1766918104534,0.00017058,87991.0,87976.0,0.0113757]
[1766918104733,0.00017058,87991.0,87976.0,0.03]
[1766918105032,5.8e-07,87991.0,87980.0,0.0113751]
[1766918105233,5.8e-07,87991.0,87980.0,0.12668]
[1766918107330,5.8e-07,87991.0,87983.0,0.0113748]
[1766918107532,5.8e-07,87991.0,87984.0,0.05692]
[1766918109841,5.8e-07,87991.0,87990.0,0.011374]
[1766918110032,0.081,88012.0,87990.0,0.011374]
[1766918110232,0.011372,88006.0,87991.0,0.05692]
[1766918112148,0.0113716,88009.0,87992.0,0.0113737]
[1766918114445,0.0113712,88012.0,87992.0,0.0113737]
[1766918114749,0.0113715,88010.0,87992.0,0.0413737]
[1766918115253,0.0113717,88008.0,87992.0,0.03]
[1766918120042,0.011372,88006.0,87992.0,0.03]
[1766918122855,0.0022724,88013.0,87992.0,0.03]
[1766918123044,0.0113716,88009.0,87993.0,0.0113735]
[1766918123356,0.0113716,88009.0,87993.0,0.0413735]
[1766918123743,0.0022724,88013.0,87993.0,0.03]
[1766918124054,0.0022724,88013.0,87997.0,0.011373]
[1766918124855,0.0022724,88013.0,87999.0,0.0113727]
[1766918131756,0.0022724,88013.0,88001.0,0.0113725]
[1766918132963,0.0022724,88013.0,88003.0,0.0113722]
[1766918135264,0.00022723,88018.0,88000.0,0.05692]
[1766918135468,0.00022723,88018.0,88006.0,0.0113718]
[1766918142569,0.00022723,88018.0,88001.0,0.09668]
[1766918142769,0.0113709,88015.0,88001.0,0.12668]
[1766918144862,0.01159763,88018.0,88001.0,0.12668]
[1766918146072,0.09664,88026.0,88001.0,0.1380525]
[1766918146271,0.0113701,88020.0,88003.0,0.0113722]
[1766918146474,0.0113701,88020.0,88003.0,0.0413722]
[1766918150369,0.0113701,88020.0,88005.0,0.011372]
[1766918150673,0.0113698,88023.0,88005.0,0.031372]
[1766918151573,0.0113698,88023.0,88007.0,0.0113717]
[1766918162781,0.01137,88021.0,88007.0,0.0113717]
[1766918166280,0.01137,88021.0,88005.0,0.00017048]
[1766918166486,0.01137,88021.0,88005.0,0.03017048]
[1766918167387,0.01137,88021.0,88006.0,0.0113719]
[1766918167570,0.0113696,88024.0,88008.0,0.0113716]
[1766918168979,0.15356,88026.0,88008.0,0.0113716]
[1766918169786,0.0113693,88027.0,88010.0,0.0113713]
[1766918169980,0.05692,88026.0,88010.0,0.0113713]
[1766918170184,0.0113693,88027.0,88010.0,0.0113713]
[1766918170379,0.1649293,88027.0,88010.0,0.0113713]
[1766918172581,0.0113695,88025.0,88010.0,0.0113713]
[1766918173890,0.05692,88027.0,88013.0,0.0113709]
[1766918174290,0.0682892,88027.0,88005.0,0.00017048]
[1766918174590,0.05692,88027.0,88012.0,0.0113711]
[1766918176383,0.05692,88027.0,88012.0,0.03]
[1766918177691,0.05692,88027.0,88013.0,0.011371]
[1766918177892,0.05692,88027.0,88013.0,0.031371]
[1766918178693,0.05692,88027.0,88015.0,0.0113707]
[1766918179590,0.05692,88027.0,88012.0,0.0113711]
[1766918179791,0.05692,88027.0,88012.0,0.0413711]
[1766918180994,0.05692,88028.0,88016.0,0.0113705]
[1766918181293,0.05692,88028.0,88018.0,0.0113703]
[1766918181685,0.05692,88028.0,88020.0,0.01137]
[1766918182392,0.0113681,88036.0,88020.0,0.01137]
[1766918182595,0.15356,88035.0,88020.0,0.01137]
[1766918182990,0.0113684,88034.0,88017.0,0.0113704]
[1766918183597,0.15356,88033.0,88017.0,0.0413704]
[1766918183998,0.15356,88033.0,88019.0,0.0113702]
[1766918185299,0.0113679,88037.0,88019.0,0.0113702]
[1766918185300,0.011368,88037.0,88019.0,0.0413702]
[1766918185505,0.15356,88036.0,88021.0,0.0113699]
[1766918186301,0.011368,88037.0,88021.0,0.0113699]
[1766918186607,0.05692,88036.0,88023.0,0.0113696]
[1766918186804,0.0113675,88040.0,88023.0,0.0113696]
[1766918187105,0.15356,88039.0,88023.0,0.0113696]
[1766918187311,0.0113675,88040.0,88023.0,0.0113696]
[1766918187500,0.081,88053.0,88023.0,0.02]
[1766918187501,0.0113668,88046.0,88023.0,0.02]
[1766918187701,0.05692,88058.0,88023.0,0.12664]
[1766918187898,0.0113663,88050.0,88023.0,0.12664]
[1766918188099,0.0113666,88047.0,88028.0,0.011369]
[1766918188401,0.0113666,88047.0,88028.0,0.041369]
[1766918188602,0.011367,88045.0,88028.0,0.12300801]
[1766918188801,0.011367,88045.0,88028.0,0.03]
[1766918189209,0.00022711,88062.0,88033.0,0.0113684]
[1766918189406,0.00022711,88062.0,88039.0,0.00017037]
[1766918189605,0.00022711,88062.0,88041.0,0.0113673]
[1766918189810,0.00022711,88062.0,88042.0,0.09664]
[1766918190000,0.00022711,88062.0,88042.0,0.18356]
[1766918190201,0.00022711,88062.0,88043.0,0.0113671]
[1766918190400,0.00022711,88062.0,88043.0,0.15493699]
[1766918191806,0.011366,88052.0,88039.0,0.00017037]
[1766918192106,0.0113674,88041.0,88026.0,0.09664]
[1766918192301,0.011367,88045.0,88026.0,0.03]
[1766918192501,0.09664,88045.0,88026.0,0.0413693]
[1766918193109,0.00017002,88044.0,88027.0,0.00017037]
[1766918193311,0.00017002,88044.0,88027.0,0.03017037]
[1766918193911,0.00017002,88044.0,88028.0,0.0113691]
[1766918194217,0.00017002,88044.0,88028.0,0.03]
[1766918194404,0.05692,88050.0,88035.0,0.0113681]
[1766918194609,0.05692,88050.0,88035.0,0.0413681]
[1766918195112,0.108006,88052.0,88035.0,0.03]
[1766918196512,0.09664,88052.0,88035.0,0.03]
[1766918197611,0.0113676,88040.0,88027.0,0.00017037]
[1766918197822,0.15352,88039.0,88027.0,0.03017037]
[1766918198714,0.0113678,88038.0,88027.0,0.03017037]
[1766918199417,0.15352,88039.0,88016.0,0.0113706]
[1766918199418,0.0113682,88035.0,88016.0,0.0113706]
[1766918199621,0.0113682,88035.0,88016.0,0.0213706]
[1766918199823,0.15352,88039.0,88016.0,0.01]
[1766918200022,0.0113687,88032.0,88016.0,0.01]
[1766918201918,0.00017037,88033.0,88000.0,0.0130657]
[1766918202221,0.0113702,88020.0,88000.0,0.03]
[1766918202422,0.1536,88019.0,88000.0,0.03]
[1766918203021,0.1536,88019.0,88001.0,0.00017037]
[1766918203224,0.1536,88019.0,88001.0,0.03017037]
[1766918204725,0.1536,88019.0,88001.0,0.04154287]
[1766918205219,0.05696,88018.0,88001.0,0.03017037]
[1766918205425,0.1536,88018.0,88001.0,0.03017037]
[1766918206321,0.1536,88018.0,88008.0,0.0113715]
[1766918206826,0.1536,88017.0,88008.0,0.0113715]
[1766918207027,0.09664,88016.0,88008.0,0.0113715]
[1766918208528,0.0113692,88028.0,88008.0,0.0113715]
[1766918208729,0.1536,88027.0,88008.0,0.0113715]
[1766918209326,0.05696,88026.0,88008.0,0.0113715]
[1766918209529,0.1536,88025.0,88008.0,0.0113715]
[1766918210231,0.0113692,88028.0,88008.0,0.0113715]
[1766918210426,0.12136,88027.0,88008.0,0.0113715]
[1766918211431,0.0113692,88028.0,88008.0,0.0113715]
[1766918211734,0.1536,88027.0,88008.0,0.0113715]
[1766918212029,0.1536,88027.0,88001.0,0.00017037]
[1766918212237,0.2346,88027.0,87996.0,0.0113731]
[1766918212535,0.0113708,88015.0,87996.0,0.0213731]
[1766918212734,0.011371,88013.0,87996.0,0.0213731]
[1766918212938,0.1536,88014.0,87998.0,0.0113728]
[1766918213234,0.1536,88014.0,87998.0,0.0413728]
[1766918213430,0.00017037,88015.0,88005.0,0.0113719]
[1766918213633,0.05696,88014.0,88008.0,0.0113716]
[1766918213835,0.09664,88013.0,88008.0,0.0113716]
[1766918214025,0.09664,88013.0,88005.0,0.011372]
[1766918214221,0.09664,88013.0,87998.0,0.0113729]
[1766918214426,0.09664,88013.0,87975.0,0.05696]
[1766918214731,0.0113716,88009.0,87986.0,0.0113744]
[1766918215031,0.0113729,87999.0,87983.0,0.00227318]
[1766918215234,0.1536,87998.0,87983.0,0.03227318]
[1766918215427,0.09664,87997.0,87983.0,0.03227318]
[1766918215625,0.09664,87997.0,87982.0,4.7e-07]
[1766918215938,0.0113739,87991.0,87958.0,0.01307187]
[1766918216126,0.0113742,87989.0,87958.0,0.03]
[1766918216330,0.05696,87990.0,87958.0,0.03]
[1766918216636,0.05696,87990.0,87972.0,0.0113763]
[1766918216836,0.068334,87990.0,87972.0,0.03017047]
[1766918217028,0.068334,87990.0,87972.0,4.7e-07]
[1766918217029,0.0113744,87987.0,87972.0,4.7e-07]
[1766918217338,0.1536,87986.0,87972.0,4.7e-07]
[1766918217538,0.09664,87985.0,87972.0,4.7e-07]
[1766918217728,0.0113753,87980.0,87972.0,4.7e-07]
[1766918218032,0.09664,87985.0,87956.0,8.745e-05]
[1766918218233,0.09664,87985.0,87956.0,0.04146575]
[1766918218623,0.0113754,87979.0,87956.0,0.04146575]
[1766918218830,0.0113745,87987.0,87956.0,0.03008745]
[1766918219129,0.00017047,87980.0,87963.0,0.00017047]
[1766918220340,0.00017047,87980.0,87965.0,0.0113771]
[1766918222430,0.05696,87979.0,87965.0,0.0113771]
[1766918222629,0.09668,87978.0,87965.0,0.0113771]
[1766918223630,0.00017047,87980.0,87968.0,0.0113768]
[1766918223825,0.15364,87979.0,87968.0,0.0113768]
[1766918224040,0.00017047,87980.0,87968.0,0.0113768]
[1766918224341,0.15368,87979.0,87964.0,0.0113773]
[1766918224840,0.15368,87979.0,87963.0,0.00017047]
[1766918225742,0.0113755,87978.0,87963.0,0.00017047]
[1766918226040,0.15368,87979.0,87963.0,0.00017047]
[1766918228643,0.1650554,87979.0,87963.0,0.00017047]
[1766918230644,0.15368,87978.0,87963.0,0.01154787]
[1766918231847,0.15368,87978.0,87963.0,0.00017047]
[1766918232930,0.011376,87975.0,87963.0,0.00017047]
[1766918233136,0.0113769,87968.0,87956.0,8.745e-05]
[1766918233336,0.15368,87967.0,87956.0,0.03008745]
[1766918233636,0.15368,87967.0,87953.0,0.00227395]
[1766918233838,0.15368,87967.0,87930.0,0.01160883]
[1766918233839,0.0113778,87961.0,87930.0,0.01160883]
[1766918234038,0.057,87960.0,87944.0,0.0113799]
[1766918234245,0.00017047,87954.0,87944.0,0.0413799]
[1766918234550,0.15377378,87953.0,87944.0,0.0413799]
[1766918234853,0.15377378,87953.0,87937.0,0.00011363]
[1766918234854,0.15377378,87953.0,87938.0,0.0113807]
[1766918235052,0.15377378,87953.0,87938.0,0.03]
[1766918235342,0.16515258,87953.0,87938.0,0.03]
[1766918235847,0.15377378,87953.0,87938.0,0.0413807]
[1766918236142,0.15377378,87953.0,87930.0,0.00022723]
[1766918236349,0.15377378,87953.0,87930.0,0.03022723]
[1766918236750,0.16515268,87953.0,87932.0,0.0113815]
[1766918236950,0.16515268,87953.0,87932.0,0.0413815]
[1766918237149,9.378e-05,87953.0,87932.0,0.0213915]
[1766918237351,0.15368,87952.0,87932.0,0.0213915]
[1766918238236,0.057,87951.0,87938.0,0.0113807]
[1766918238446,0.09668,87950.0,87938.0,0.0113807]
[1766918238740,0.09668,87950.0,87930.0,0.00022723]
[1766918238937,0.09668,87950.0,87934.0,0.0113811]
[1766918239147,0.09668,87950.0,87934.0,0.0413811]
[1766918239754,0.09668,87950.0,87934.0,0.01]
[1766918240354,0.09668,87950.0,87936.0,0.0113809]
[1766918241753,0.15372,87949.0,87938.0,0.0113806]
[1766918242760,0.15372,87949.0,87940.0,0.0113803]
[1766918243451,0.15372,87949.0,87937.0,0.0113808]
[1766918245456,9.378e-05,87953.0,87939.0,0.0113804]
[1766918245651,0.15372,87952.0,87939.0,0.0113804]
[1766918245856,0.15372,87951.0,87939.0,0.0113804]
[1766918247658,0.15372,87951.0,87941.0,0.0113802]
[1766918253160,0.15372,87951.0,87943.0,0.01138]
[1766918257764,0.1650991,87951.0,87934.0,0.0113812]
[1766918257963,0.15372,87951.0,87934.0,0.03]
[1766918259269,0.15372,87951.0,87938.0,0.0113806]
[1766918261169,0.15372,87951.0,87934.0,0.0113811]
[1766918261568,0.15372,87951.0,87934.0,0.0413811]
[1766918261867,0.15372,87951.0,87936.0,0.0113809]
[1766918262067,0.15372,87951.0,87936.0,0.0413809]
[1766918262263,0.15372,87951.0,87932.0,0.0113814]
[1766918262469,0.0113795,87948.0,87932.0,0.03]
[1766918262668,0.0113797,87946.0,87932.0,0.02206]
[1766918262869,0.057,87945.0,87932.0,0.02206]
[1766918263373,0.057,87945.0,87932.0,0.0334414]
[1766918264064,0.0113789,87952.0,87935.0,0.0113811]
[1766918264275,0.0113792,87950.0,87932.0,0.0113814]
[1766918264565,0.15372,87951.0,87932.0,0.02]
[1766918264769,0.15372,87951.0,87932.0,0.00408]
[1766918265863,0.0113801,87943.0,87932.0,0.00408]
[1766918266165,0.057,87942.0,87932.0,0.00408]
[1766918266366,0.09672,87941.0,87932.0,0.03]
[1766918271671,0.09672,87941.0,87927.0,0.011382]
[1766918271877,0.09672,87941.0,87927.0,0.041382]
[1766918274875,0.09672,87941.0,87927.0,0.03]
[1766918275074,0.057,87940.0,87927.0,0.03]
[1766918275279,0.057,87939.0,87927.0,0.03]
[1766918275466,0.057,87940.0,87932.0,0.0113814]
[1766918275775,0.057,87940.0,87932.0,0.0413814]
[1766918276164,3e-08,87940.0,87932.0,0.0413814]
[1766918276880,9.378e-05,87953.0,87932.0,0.03]
[1766918277174,0.13716,87952.0,87932.0,0.03]
[1766918277379,0.15372,87951.0,87932.0,0.03]
[1766918277581,0.15372,87950.0,87932.0,0.03]
[1766918277778,0.057,87949.0,87932.0,0.03]
[1766918278083,0.057,87948.0,87932.0,0.03]
[1766918278280,0.057,87948.0,87938.0,0.0113806]
[1766918278482,0.057,87948.0,87938.0,0.0413806]
[1766918279376,9.378e-05,87953.0,87944.0,0.0113799]
[1766918280987,5e-08,87954.0,87947.0,0.0113795]
[1766918282086,5e-08,87954.0,87943.0,0.0113799]
[1766918282287,5e-08,87954.0,87943.0,0.0413799]
[1766918283089,5e-08,87954.0,87943.0,0.03]
[1766918283386,0.0505764,87971.0,87949.0,0.0113792]
[1766918283578,0.0113764,87971.0,87952.0,0.0113788]
[1766918283778,0.0113764,87971.0,87952.0,0.0413788]
[1766918284185,0.00017057,87970.0,87952.0,0.0413788]
[1766918284372,0.00017057,87970.0,87954.0,0.0113785]
[1766918284576,0.00017057,87970.0,87956.0,0.0113782]
[1766918284776,0.00017057,87970.0,87958.0,0.011378]
[1766918286683,0.0113767,87969.0,87950.0,0.0113791]
[1766918286888,0.00017057,87970.0,87950.0,0.03]
[1766918287192,0.0113778,87961.0,87950.0,0.03]
[1766918288787,0.0113781,87959.0,87950.0,0.03]
[1766918288992,0.15372,87962.0,87942.0,0.00017057]
[1766918289182,0.0113791,87951.0,87942.0,0.01]
[1766918289894,0.0113787,87954.0,87942.0,0.01]
[1766918290391,0.15372,87961.0,87942.0,0.01]
[1766918290582,0.15372,87961.0,87935.0,0.09672]
[1766918290783,0.15372,87961.0,87935.0,0.12672]
[1766918290984,0.0113795,87948.0,87935.0,0.12672]
[1766918291679,0.00017057,87950.0,87935.0,0.03]
[1766918291887,0.15389057,87950.0,87935.0,0.03]
[1766918292093,0.0113796,87947.0,87935.0,0.03]
[1766918292392,0.15389057,87950.0,87935.0,0.03]
[1766918293588,0.0113793,87949.0,87930.0,0.0113816]
[1766918293783,0.0113793,87949.0,87930.0,0.0413816]
[1766918296086,0.0113797,87947.0,87930.0,0.03]
[1766918296683,0.0113797,87947.0,87931.0,0.0113816]
[1766918296894,0.0113797,87947.0,87931.0,0.0413816]
[1766918298492,0.15389057,87950.0,87931.0,0.0413816]
[1766918301792,0.0113793,87949.0,87931.0,0.0413816]
[1766918304496,0.0113802,87942.0,87931.0,0.03]
[1766918304693,0.15389057,87950.0,87931.0,0.03]
[1766918304998,0.0113812,87934.0,87923.0,0.057]
[1766918305197,0.0113809,87937.0,87923.0,0.087]
[1766918306492,0.0113805,87940.0,87923.0,0.087]
[1766918310603,0.0113808,87938.0,87923.0,0.087]
[1766918314414,0.0113806,87939.0,87923.0,0.087]
[1766918316205,0.0113806,87939.0,87923.0,0.03]
[1766918317709,0.0683806,87939.0,87923.0,0.03]
[1766918318510,0.057,87939.0,87923.0,0.03]
[1766918318709,0.057,87939.0,87929.0,0.0113819]
[1766918318921,0.0113797,87946.0,87929.0,0.0113819]
[1766918319117,0.15372,87945.0,87931.0,0.0113815]
[1766918319919,0.15372,87945.0,87928.0,0.0113819]
[1766918320221,0.15372,87945.0,87928.0,0.0313819]
[1766918321415,0.057,87944.0,87928.0,0.0313819]
[1766918321616,0.0113796,87947.0,87928.0,0.0313819]
[1766918321815,0.057,87946.0,87928.0,0.0313819]
[1766918322013,0.09672,87945.0,87928.0,0.0313819]
[1766918322820,0.0113796,87947.0,87928.0,0.0313819]
[1766918323010,0.15372,87946.0,87928.0,0.0313819]
[1766918329731,0.15372,87946.0,87928.0,0.02]
[1766918329918,0.0113809,87937.0,87921.0,0.1081028]
[1766918330228,0.0113811,87935.0,87921.0,0.12672]
[1766918330419,0.057,87939.0,87921.0,0.12672]
[1766918330420,0.0113817,87931.0,87921.0,0.12672]
[1766918330622,0.0113812,87934.0,87921.0,0.12672]
[1766918334530,0.0113812,87935.0,87921.0,0.12672]
[1766918335524,0.1081012,87935.0,87921.0,0.03]
[1766918339128,0.09672,87935.0,87921.0,0.03]
[1766918339326,0.057,87934.0,87921.0,0.03]
[1766918340834,0.057,87933.0,87921.0,0.03]
[1766918341030,0.057,87933.0,87923.0,0.0113825]
[1766918342134,0.057,87933.0,87925.0,0.0113823]
[1766918343534,0.0113815,87932.0,87917.0,0.0113833]
[1766918343737,0.0113815,87932.0,87917.0,0.0413833]
[1766918344836,0.0113815,87932.0,87917.0,0.03]
[1766918345037,0.057,87933.0,87917.0,0.03]
[1766918345332,0.057,87933.0,87918.0,0.0113833]
[1766918345539,0.057,87933.0,87918.0,0.0413833]
[1766918346137,0.057,87932.0,87918.0,0.0413833]
[1766918346638,0.057,87932.0,87920.0,0.011383]
[1766918346838,0.057,87932.0,87920.0,0.041383]
[1766918347039,0.057,87931.0,87920.0,0.041383]
[1766918347538,0.057,87931.0,87920.0,0.03]
[1766918349241,0.0683817,87931.0,87920.0,0.03]
[1766918353834,0.0683817,87931.0,87920.0,0.0044]
[1766918354036,0.0113832,87919.0,87912.0,0.09672]
[1766918354347,0.0113828,87922.0,87912.0,0.12672]
[1766918357640,0.0113825,87925.0,87912.0,0.12672]
[1766918359236,0.0113821,87928.0,87912.0,0.12672]
[1766918360447,0.0113824,87926.0,87912.0,0.03]
[1766918366645,0.0113819,87929.0,87912.0,0.03]
[1766918366844,0.02568651,87928.0,87912.0,0.03]
[1766918367043,0.0113819,87929.0,87912.0,0.03]
[1766918367244,0.02568651,87928.0,87912.0,0.03]
[1766918367447,0.0113819,87929.0,87912.0,0.03]
[1766918367647,0.02568592,87928.0,87912.0,0.03]
[1766918367848,0.0113819,87929.0,87912.0,0.03]
[1766918368048,0.02568592,87928.0,87912.0,0.03]
[1766918368255,0.0113819,87929.0,87912.0,0.03]
[1766918368554,0.0256856,87928.0,87912.0,0.03]
[1766918368749,0.0113819,87929.0,87912.0,0.03]
[1766918368950,0.0256856,87928.0,87912.0,0.03]
[1766918369249,0.0113819,87929.0,87912.0,0.03]
[1766918369449,0.02568529,87928.0,87912.0,0.03]
[1766918369649,0.0113819,87929.0,87912.0,0.03]
[1766918369952,0.02568529,87928.0,87912.0,0.03]
[1766918370152,0.0113819,87929.0,87912.0,0.03]
[1766918370349,0.02568541,87928.0,87912.0,0.03]
[1766918370660,0.057,87931.0,87916.0,0.0113834]
[1766918370952,0.02568373,87930.0,87916.0,0.0113834]
[1766918371153,0.02568373,87929.0,87916.0,0.0113834]
[1766918371351,0.057,87931.0,87916.0,0.0113834]
[1766918371553,0.02568458,87930.0,87916.0,0.0113834]
[1766918371747,0.02568458,87929.0,87916.0,0.0113834]
[1766918371955,0.057,87931.0,87916.0,0.0113834]
[1766918372154,0.02568458,87930.0,87916.0,0.0113834]
[1766918372354,0.02568458,87929.0,87916.0,0.0113834]
[1766918372555,0.057,87931.0,87918.0,0.0113832]
[1766918372757,0.02568577,87930.0,87918.0,0.0113832]
[1766918372956,0.02568577,87929.0,87915.0,0.0113836]
[1766918373254,0.057,87931.0,87915.0,0.0113836]
[1766918373448,0.02568725,87930.0,87915.0,0.0113836]
[1766918373663,0.02568725,87929.0,87915.0,0.0113836]
[1766918373848,0.0113815,87932.0,87915.0,0.0113836]
[1766918374049,0.057,87928.0,87915.0,0.0113836]
[1766918374754,0.057,87927.0,87919.0,0.0113831]
[1766918375060,0.057,87928.0,87919.0,0.0113831]
[1766918376255,0.057,87928.0,87910.0,0.057]
[1766918376455,0.057,87928.0,87916.0,0.0113835]
[1766918379463,0.057,87928.0,87913.0,0.0113839]
[1766918379655,0.0113824,87925.0,87913.0,0.03]
[1766918383164,0.0683821,87928.0,87913.0,0.03]
[1766918383366,0.02587056,87927.0,87913.0,0.03]
[1766918383557,0.02587056,87926.0,87913.0,0.03]
[1766918383866,0.0683821,87928.0,87913.0,0.03]
[1766918384066,0.02587654,87927.0,87913.0,0.03]
[1766918384266,0.02587654,87926.0,87913.0,0.03]
[1766918384569,0.0683821,87928.0,87913.0,0.03]
[1766918384861,0.0113826,87924.0,87907.0,0.01148302]
[1766918385065,0.0113831,87920.0,87907.0,0.03009832]
[1766918385260,0.0113834,87918.0,87907.0,0.03009832]
[1766918385462,0.057,87920.0,87907.0,2e-08]
[1766918385662,0.057,87920.0,87896.0,0.0113861]
[1766918385663,0.09676,87919.0,87896.0,0.0113861]
[1766918385867,0.01155427,87916.0,87899.0,0.0113857]
[1766918386068,0.01155427,87916.0,87899.0,0.0413857]
[1766918386261,0.00017057,87916.0,87899.0,0.0413857]
[1766918386462,9.832e-05,87915.0,87899.0,0.0413857]
[1766918387170,9.832e-05,87915.0,87901.0,0.0113854]
[1766918387361,9.832e-05,87915.0,87903.0,0.0113851]
[1766918387667,9.832e-05,87915.0,87903.0,0.0413851]
[1766918387868,9.832e-05,87915.0,87905.0,0.0113849]
[1766918388063,9.832e-05,87915.0,87905.0,0.0213849]
[1766918388680,0.057,87921.0,87905.0,0.03]
[1766918388970,0.06076,87923.0,87909.0,0.0113844]
[1766918391670,0.06076,87923.0,87907.0,0.00017057]
[1766918391870,0.06076,87923.0,87907.0,0.03017057]
[1766918392170,0.0721427,87923.0,87907.0,0.03017057]
[1766918395070,0.0113835,87917.0,87907.0,0.03017057]
[1766918395276,0.0113834,87918.0,87899.0,0.15376]
[1766918395472,0.0113834,87918.0,87899.0,0.18376]
[1766918396268,0.0113834,87918.0,87902.0,0.0113853]
[1766918396463,0.0113834,87918.0,87902.0,0.0413853]
[1766918397278,0.011383,87921.0,87902.0,0.0413853]
[1766918402182,0.06076,87923.0,87902.0,0.03]
[1766918402486,0.011384,87913.0,87894.0,0.0113864]
[1766918402685,0.0113843,87911.0,87894.0,0.0413864]
[1766918405475,0.0113843,87911.0,87894.0,0.03]
[1766918406483,0.15376,87913.0,87895.0,0.0113862]
[1766918406786,0.02613671,87912.0,87899.0,0.0113856]
[1766918406993,0.15376,87913.0,87899.0,0.0113856]
[1766918407190,0.0261359,87912.0,87899.0,0.0113856]
[1766918407391,0.15376,87913.0,87899.0,0.0113856]
[1766918407593,0.02613606,87912.0,87899.0,0.0113856]
[1766918407791,0.15376,87913.0,87899.0,0.0113856]
[1766918408094,0.02613606,87912.0,87899.0,0.0113856]
[1766918408392,0.15376,87913.0,87893.0,0.00227551]
[1766918408590,0.02613682,87912.0,87893.0,0.03227551]
[1766918408789,0.02613762,87911.0,87893.0,0.03227551]
[1766918408994,0.15376,87913.0,87893.0,0.03227551]
[1766918409292,0.02613763,87912.0,87893.0,0.03227551]
[1766918409592,0.02613763,87911.0,87893.0,0.03227551]
[1766918409891,0.15376,87913.0,87895.0,0.0113862]
[1766918410091,0.02613843,87912.0,87895.0,0.0413862]
[1766918410293,0.02613843,87911.0,87895.0,0.03]
[1766918410586,0.01308326,87921.0,87895.0,0.03]
[1766918410791,0.0113841,87912.0,87895.0,0.03]
[1766918411093,0.02613839,87911.0,87895.0,0.03]
[1766918411290,0.02613839,87910.0,87895.0,0.03]
[1766918411487,0.15376,87920.0,87895.0,0.03]
[1766918411688,0.02613861,87919.0,87895.0,0.03]
[1766918411891,0.02613861,87918.0,87895.0,0.03]
[1766918412193,0.0113842,87912.0,87895.0,0.03]
[1766918412393,0.02613861,87911.0,87896.0,0.011386]
[1766918412593,0.02613861,87911.0,87896.0,0.041386]
[1766918413693,0.02613861,87910.0,87896.0,0.041386]